Cogmind - Beta 11.1 @@@ ROGUE MODE // 2022.04.26 @ 20:16:22 Player: Azken Zutik Result: Destroyed by 8R-AWN with 8R-AWN's Boregun Performance ------------- Evolutions (0) 0 Regions Visited (3) 600 Robots Destroyed (41) 205 Value Destroyed (865) 865 Prototype IDs (28) 560 Alien Tech Used (0) 0 Bonus (146) 146 TOTAL SCORE: 2376 Bonus ------- Aligned with FarCom 300 Friendly Fire -154 Cogmind --------- Core Integrity 0/250 Matter 148/300 Energy 100/100 System Corruption 2% Temperature Cool (0) Movement Treading (225) Ox1 Location -10/Exiles Parts ------- > --- POWER (1) -------- (None) > --- PROPULSION (2) --- Advanced Treads > --- UTILITY (2) ------ High-capacity Storage Unit Chronowheel > --- WEAPON (2) ------- Grenade Launcher > --- INVENTORY (20) --- Ion Engine Light Nuclear Core Light Treads Light Treads Improved Treads Improved Treads Improved Treads Large Matter Pod (0) Experimental Sensor Array Improved Signal Interpreter Assault Rifle Assault Rifle Assault Rifle Light Assault Rifle Light Assault Rifle Grenade Launcher Peak State ------------ > --- POWER ------------ Light Deuterium Engine > --- PROPULSION ------- Advanced Treads > --- UTILITY ---------- High-capacity Storage Unit Chronowheel > --- WEAPON ----------- Grenade Launcher Grenade Launcher > --- INVENTORY -------- Ion Engine Light Nuclear Core Light Treads Light Treads Improved Treads Improved Treads Improved Treads Large Matter Pod Experimental Sensor Array Improved Signal Interpreter Assault Rifle Assault Rifle Assault Rifle Light Assault Rifle Light Assault Rifle Grenade Launcher [Rating: 25] Favorites ----------- Power Ion Engine Engine Ion Engine Power Core Light Nuclear Core Propulsion Improved Treads Treads Improved Treads Leg Aluminum Leg Utility Large Storage Unit Device Improved Terrain Scanner Storage Large Storage Unit Processor Advanced Targeting Computer Weapon Assault Rifle Ballistic Gun Assault Rifle Launcher Grenade Launcher Build | -11 -10 -10 -10 ------- Run | Scr Mat Min Exi Slots Evolved . | . . . . Power . | . . . . Propulsion . | . . . . Utility . | . . . . Weapon . | . . . . Parts Attached 29 | 3 13 7 6 Power 3 | . 1 2 . Engine 2 | . 1 1 . Core 1 | . . 1 . Reactor . | . . . . Propulsion 7 | 2 4 1 . Treads 7 | 2 4 1 . Leg . | . . . . Wheel . | . . . . Hover . | . . . . Flight . | . . . . Utility 8 | 1 1 4 2 Device 3 | 1 . 1 1 Storage 4 | . 1 3 . Processor 1 | . . . 1 Hackware . | . . . . Protection . | . . . . Artifact . | . . . . Weapon 11 | . 7 . 4 Energy Gun . | . . . . Energy Cannon . | . . . . Ballistic Gun 4 | . 4 . . Ballistic Cannon . | . . . . Launcher 7 | . 3 . 4 Special Weapon . | . . . . Impact Weapon . | . . . . Slashing Weapon . | . . . . Piercing Weapon . | . . . . Special Melee Weapon . | . . . . Unidentified Prototypes 1 | . . 1 . Parts Lost 5 | . . . 5 Power 1 | . . . 1 Propulsion 1 | . . . 1 Utility . | . . . . Weapon 3 | . . . 3 Highest Loss Streak 3 | . . . 3 To Critical Strikes 1 | . . . 1 Average Slot Usage (%) 99 | . 99 100 99 Engine 13 | . 14 12 13 Treads 27 | . 27 28 27 Device 5 | . 14 . . Storage 22 | . 14 27 25 Ballistic Gun 24 | . 19 28 24 Launcher 3 | . 8 . 3 Naked Turns . | . . . . Heaviest Build 52 | 15 34 52 52 Greatest Support 45 | 40 43 45 45 Greatest Overweight (x) 1 | . 1 1 1 Average Overweight (x) . | . . . 1 Largest Inventory Capacity 20 | 8 15 20 20 Average Capacity 16 | 8 14 16 20 Most Carried 19 | 6 15 18 19 Average Carried 14 | 5 11 16 18 Final Capacity 20 | 8 15 20 20 Final Carried 18 | 3 15 18 16 Class Distribution -------------------- 100% | Mutant Dominant Class ---------------- Mutant | -10/Materials Mutant | -10/Mines Mutant | -10/Exiles Resources | -11 -10 -10 -10 ----------- Run | Scr Mat Min Exi Matter Collected 886 | 248 298 327 13 Remotely . | . . . . Salvage Created 1126 | 93 565 278 190 Parts 68 | 9 36 14 9 Haulers Intercepted 2 | . 2 . . Recyclers Shooed 2 | . 2 . . Parts Field Recycled . | . . . . Retrieved Matter . | . . . . Parts Self-Destructed . | . . . . Prevented . | . . . . Kills | -11 -10 -10 -10 ------- Run | Scr Mat Min Exi Combat Hostiles Destroyed 27 | . 9 10 8 Guns 12 | . 2 10 . AOE 15 | . 7 . 8 Classes Destroyed 11 | 2 6 . 3 Worker 2 | . 1 1 . Builder 3 | . 3 . . Tunneler 2 | 1 1 . . Hauler 2 | . 2 . . Recycler 2 | 1 1 . . Watcher 3 | . 3 . . Swarmer 12 | . 6 6 . Grunt 12 | . 3 4 5 Demolisher 1 | . . . 1 Hunter 2 | . . . 2 Assembled 1 | . . . 1 Best Kill Streak 8 | 2 6 3 8 Combat Bots Only 8 | . 5 3 8 Max Kills in Single Turn 4 | 1 4 2 3 Gunslinging 1 | . . 1 . Exploded 3 | . 2 . 3 Melee . | . . . . Uniques/NPCs Destroyed . | . . . . Combat | -11 -10 -10 -10 -------- Run | Scr Mat Min Exi Damage Taken 1229 | . 225 329 675 Core 264 | . 39 45 180 Absorbed by Shields . | . . . . Regen/Repaired (Parts) 69 | . 69 . . Core Remaining (%) 100 | 100 . . . Volleys Fired 78 | 3 34 32 9 Largest 2 | 2 2 2 2 Hottest 66 | 40 66 40 60 Shots Fired 142 | 6 59 64 13 Gun 113 | 6 43 64 . Cannon . | . . . . Launcher 29 | . 16 . 13 Special . | . . . . Kinetic 113 | 6 43 64 . Thermal . | . . . . Explosive 17 | . 4 . 13 Electromagnetic 12 | . 12 . . Robot Hit Streak 13 | 4 6 13 11 Robot Miss Streak 3 | . 3 2 . Penetration Max . | . . . . Secondary Targets 3 | . . 3 . Max Gunslinging Chain 1 | . . 1 . Shots Hit Robots 88 | 4 28 46 10 Core Hits 73 | 2 30 17 24 Critical Kills . | . . . . Critical Parts Destroyed . | . . . . Critical Strikes . | . . . . Melee Attacks . | . . . . Impact . | . . . . Slashing . | . . . . Piercing . | . . . . Sneak Attacks . | . . . . Combat Hostiles . | . . . . Follow-up Attacks . | . . . . Damage Inflicted 2530 | 49 1176 655 650 Guns 1019 | 49 338 632 . Cannons . | . . . . Explosions 1466 | . 816 . 650 Melee . | . . . . Ramming 45 | . 22 23 . Kinetic 1019 | 49 338 632 . Thermal . | . . . . Explosive 1001 | . 351 . 650 Electromagnetic 465 | . 465 . . Impact . | . . . . Slashing . | . . . . Piercing . | . . . . Highest Corruption 2 | . . . 2 Average Corruption 1 | . . . 1 Corruption Purged . | . . . . Corruption Blocked . | . . . . Overload Shots . | . . . . Overflow Damage 4 | . 4 . . Projectiles . | . . . . Explosions . | . . . . Melee 4 | . 4 . . Knockbacks 2 | . 1 1 . Impact 2 | . 1 1 . Kinetic . | . . . . Secondary . | . . . . Self-Inflicted Damage 29 | . 29 . . Shots 1 | . 1 . . Rammed 4 | . 2 2 . Targets Rammed 5 | . 2 3 . Kicked . | . . . . Crushed 1 | . . 1 . Highest Temperature 36 | 6 36 20 9 Average Temperature 9 | 6 15 7 4 Received Heat Transfer 243 | . 72 153 18 Siege Activations . | . . . . Robots Corrupted . | . . . . Combat Hostiles . | . . . . Parts Fried 5 | . 5 . . Impact Corruptions 1 | . 1 . . Robots Melted . | . . . . Combat Hostiles . | . . . . Parts Melted . | . . . . Heat Transferred . | . . . . Parts Sabotaged . | . . . . Parts Stolen . | . . . . Parts Stripped . | . . . . Power Chain Reactions . | . . . . Missiles Intercepted . | . . . . Alert | -11 -10 -10 -10 ------- Run | Scr Mat Min Exi Peak Influence 262 | 10 262 222 . Initial 37 | . 6 37 . Average 95 | 9 146 57 . Maximum Alert Level 1 | . 1 1 . Low Security (%) 81 | 100 60 96 . Level 1 18 | . 39 3 . Level 2 . | . . . . Level 3 . | . . . . Level 4 . | . . . . Level 5 . | . . . . High Security . | . . . . Max Security . | . . . . Squads Dispatched 2 | . 1 1 . Investigation 1 | . . 1 . Extermination . | . . . . Reinforcement 1 | . 1 . . Assault . | . . . . Garrison . | . . . . Intercept . | . . . . Searches Triggered . | . . . . Construction Impeded . | . . . . Haulers Reinforced . | . . . . Active Scanning Responses . | . . . . Cargo Convoy Interrupts . | . . . . Stealth | -11 -10 -10 -10 --------- Run | Scr Mat Min Exi Distress Signals 3 | . 3 . . Communications Jammed . | . . . . Distress Signals . | . . . . Times Spotted 36 | . 16 11 9 Peak Tracking Total 12 | . 6 3 12 Tactical Retreats 2 | . 1 1 . Traps | -11 -10 -10 -10 ------- Run | Scr Mat Min Exi Traps Triggered 2 | . 2 . . Indirectly . | . . . . Trap Hack Attempts . | . . . . Triggered . | . . . . Disarmed . | . . . . Reprogrammed . | . . . . Reused . | . . . . Traps Extracted . | . . . . Installed . | . . . . Triggered 1 | . 1 . . Exploded 1 | . . . 1 Machines | -11 -10 -10 -10 ---------- Run | Scr Mat Min Exi Machines Disabled 4 | . 4 . . Max in Single Turn 2 | . 2 . . Machines Sabotaged . | . . . . Garrisons Compromised . | . . . . Overloaded Fab Kills . | . . . . Hacking | -11 -10 -10 -10 --------- Run | Scr Mat Min Exi Machines Accessed 9 | . 6 2 1 Terminals 6 | . 5 1 . Fabricators . | . . . . Repair Stations 1 | . 1 . . Recycling Units . | . . . . Scanalyzers . | . . . . Garrison Access . | . . . . Total Hacks 22 | . 17 4 1 Successful 16 | . 13 2 1 Failed 4 | . 3 1 . Catastrophic . | . . . . Database Lockouts 2 | . 1 1 . Manual 11 | . 7 3 1 Terminals 14 | . 11 3 . Fabricators . | . . . . Repair Stations 6 | . 6 . . Recycling Units . | . . . . Scanalyzers . | . . . . Garrison Access . | . . . . Terminal Hacks 10 | . 7 2 1 Robot Analysis 5 | . 4 1 . Prototype ID Bank 2 | . 2 . . Open Door 1 | . . 1 . Hauler Manifests 1 | . 1 . . EX-Prototype ID Bank 1 | . . . 1 Fabricator Hacks . | . . . . Repair Station Hacks 5 | . 5 . . Scan Component 3 | . 3 . . Repair 2 | . 2 . . Recycling Unit Hacks . | . . . . Scanalyzer . | . . . . Garrison Access Hacks . | . . . . Unauthorized Hacks 1 | . 1 . . Terminals 1 | . 1 . . Assimilate 1 | . 1 . . Fabricators . | . . . . Repair Stations . | . . . . Recycling Units . | . . . . Scanalyzers . | . . . . Garrison Access . | . . . . Data Cores Recovered . | . . . . Used . | . . . . Hacking Detections 4 | . 4 . . Full Trace Events . | . . . . Feedback Events . | . . . . Feedback Blocked . | . . . . Robot Schematics Acquired . | . . . . Robots Built . | . . . . Authchips . | . . . . Time . | . . . . Total Robot Build Rating . | . . . . Part Schematics Acquired . | . . . . Parts Built . | . . . . Authchips . | . . . . Time . | . . . . Total Part Build Rating . | . . . . Parts Repaired 2 | . 2 . . Time 52 | . 52 . . Parts Recycled . | . . . . Recycled Matter . | . . . . Retrieved Matter . | . . . . Retrieved Components . | . . . . Parts Scanalyzed . | . . . . Part Schematics Acquired . | . . . . Parts Damaged . | . . . . Bothacking | -11 -10 -10 -10 ------------ Run | Scr Mat Min Exi Used RIF Installer . | . . . . Robots Hacked . | . . . . Non-combat . | . . . . Combat . | . . . . Robot Hacks Applied . | . . . . Relay Couplers Released . | . . . . Fabnet Peak Effective % . | . . . . Robots Rewired . | . . . . Allies Hacked . | . . . . Hacks Repelled . | . . . . Allies | -11 -10 -10 -10 -------- Run | Scr Mat Min Exi Total Allies 1 | . 1 . . Largest Group 1 | . 1 1 . Highest-Rated Group 10 | . 10 10 . Highest-Rated Ally 10 | . 10 10 . Total Orders . | . . . . Ally Attacks . | . . . . Total Damage . | . . . . Kills . | . . . . Allies Corrupted . | . . . . Allies Melted . | . . . . Intel | -11 -10 -10 -10 ------- Run | Scr Mat Min Exi Robot Analysis Total 5 | . 4 1 . Derelict Logs Recovered 1 | . . 1 . Drone Launches . | . . . . Drone Recoveries . | . . . . Exploration | -11 -10 -10 -10 ------------- Run | Scr Mat Min Exi Turns Passed 3573 | 37 1312 1718 506 Spaces Moved 1789 | 17 707 866 199 Core . | . . . . Treads 1779 | 7 707 866 199 Legs 10 | 10 . . . Wheels . | . . . . Hover . | . . . . Flight . | . . . . Fastest Speed 120 | 120 160 152 232 Average Speed 177 | 136 160 179 232 Slowest Speed 240 | 160 240 232 232 Overloaded Moves . | . . . . Propulsion Burnouts . | . . . . Robots Hopped . | . . . . Cave-ins Triggered . | . . . . Exploration Rate (%) 59 | 3 96 99 41 Regions Visited 3 Branch Regions 2 Pre-discovered Areas . | . . . . Known Exits Taken . | . . . . Unknown Exits Taken 3 | 1 1 1 . Scrap Searched 1 | . . 1 . Spaces Dug . | . . . . Terrain Destroyed 52 | . 28 . 24 Melee . | . . . . Projectile . | . . . . AOE 52 | . 28 . 24 Terrain Rammed . | . . . . Walls Destroyed . | . . . . Machines Disabled . | . . . . Actions | -11 -10 -10 -10 --------- Run | Scr Mat Min Exi Total 2046 | 25 830 962 229 Wait 99 | . 45 42 12 Move 1786 | 16 706 865 199 Hop . | . . . . Pick Up 27 | . 20 5 2 Fast Attach 10 | 1 4 5 . Attach 2 | . . . 2 Detach 1 | . . 1 . Swap 17 | 2 9 2 4 Drop 21 | 3 10 7 1 Fire 78 | 3 34 32 9 Melee . | . . . . Ram . | . . . . Kick . | . . . . Crush 5 | . 2 3 . Escape Stasis . | . . . . Rewire . | . . . . Trap . | . . . . Miscellaneous . | . . . . Route ------- -11/Scrapyard -10/Materials (discovered 5 exits: [*Mat x3] / *Min x2) -10/Mines (discovered 3 exits: [*Mat x2] / *Exi) -10/Exiles History --------- Turn | Location | Event 11 | -11/Scrapyard | Discovered new exit (range 2) 38 | -11/Scrapyard | Entered Materials 320 | -10/Materials | Build established: Mutant 441 | -10/Materials | Central database locked down 484 | -10/Materials | Discovered new exit (range 8) 545 | -10/Materials | Discovered new exit (range 15) 646 | -10/Materials | Discovered new exit (range 13) 802 | -10/Materials | Discovered new exit (range 15) 1189 | -10/Materials | Discovered new exit (range 6) 1242 | -10/Materials | Repaired Lgt. Treads 1268 | -10/Materials | Repaired Lgt. Treads 1350 | -10/Materials | Entered Mines 1350 | -10/Mines | Accompanied by 1 ally 1497 | -10/Mines | Learned 2 Materials zone layouts 1522 | -10/Mines | Central database locked down 1562 | -10/Mines | Discovered new exit (range 15) 1769 | -10/Mines | Discovered new exit (range 7) 1852 | -10/Mines | Deemed a non-threat by the Exiles lab entrance 1854 | -10/Mines | Discovered new exit (range 5) 1881 | -10/Mines | Found a hidden stash of uninstalled traps 1986 | -10/Mines | Met a Derelict shopkeep closing up shop 2277 | -10/Mines | Found a damaged Exp. Sensor Array with a note attached 2280 | -10/Mines | Found Prototype Device 2436 | -10/Mines | Identified Exp. Sensor Array 3068 | -10/Mines | Entered Exiles 3124 | -10/Exiles | Met 8R-AWN 3166 | -10/Exiles | Met EX-HEX 3245 | -10/Exiles | Met EX-BIN 3273 | -10/Exiles | Aligned with FarCom system 3277 | -10/Exiles | Given EX-Vault access code 3349 | -10/Exiles | Opened EX-Vault 3363 | -10/Exiles | Found Chronowheel 3413 | -10/Exiles | Warned to stay clear of 0b10 Research branches 3444 | -10/Exiles | Exiles lab attacked by MAIN.C 3523 | -10/Exiles | Attacked by the Exiles 3523 | -10/Exiles | Core integrity fell below 50% 3557 | -10/Exiles | Destroyed 8 combat bots 3558 | -10/Exiles | Core integrity fell below 20% 3566 | -10/Exiles | Activated Chronowheel 3574 | -10/Exiles | Destroyed by 8R-AWN with 8R-AWN's Boregun Last Messages --------------- 03537_ The unstable cave ceiling collapses. 03539_ Dropped Lrg. Matter Pod. 03540_ Extracted 13 matter. 03540_ The unstable cave ceiling collapses. 03540_ Acquired Lrg. Matter Pod. 03542_ The unstable cave ceiling collapses. 03554_ Penetrated by HV Slug. 03559_ The unstable cave ceiling collapses. 03565_ Penetrated by HV Slug. 03565_ Critical hit (Destroy). 03565_ Imp. Treads destroyed. 03566_ Discarded Adv. Targeting Computer. 03566_ Spacetime feels off. 03567_ Penetrated by HV Slug. 03569_ Lgt. Deuterium Engine destroyed. 03569_ Penetrated by HV Slug. 03569_ HV Slug penetrates Earth. 03572_ Penetrated by HV Slug. 03572_ Grenade Launcher destroyed. 03574_ Penetrated by HV Slug. Map ----- +----------------------------------------------------+ | """#??????????????????????????????????????? | | """#??????????????????????????????????????? | | """#??????????????????????????????????????? | | """"??????????????????????????????????????? | | """#??????????????????????????????????????? | | "X" """"??????????????????????????????????????? | | """ #??????????????????????????????????????? | | """""""""#??????????????????????????????????????? | | ###########??????????????????????????????????????? | | #????????????????????????????????????????????????? | | #????????????????????????????????????????????????? | | ##???????????????????????????????????????????????? | | ##???###########????????????????????????????????? | | #####"""""""""##???????????????????????????????? | | " """ """"##??????????????????????????????? | | "" " #??????????????????????????????? | | " """####???????????????????????????? | | "a ##???????#####??????????????? | | ##?????##" #??????????????# | | # #?????#" #?????????????## | | # ####?##" ##????????????# | | # ### ###????????### | | #""" g ########## | | ##""" # #""""## | | ?#"""" # * | | ?#"" @ [%=## | | ?"""" ### | | ? #"""""#### | | # #########??#### | | # #?????????????##### | | # ##?????????????????## | | " # ####???????????????????? | | "" """ " ## #??????????????????????? | | ?"" " " ""#" ######??????????????????????? | | ??##""" ""?##"""""""##???????????????????????????? | | ??????"""???#########????????????????????????????? | | ?????????????????????????????????????????????????? | | ?????????????????????????????????????????????????? | | ?????????????????????????????????????????????????? | | ?????????????????????????????????????????????????? | | ?????????????????????????????????????????????????? | | ?????????????????????????????????????????????????? | | ?????????????????????????????????????????????????? | | ?????????????????????????????????????????????????? | | ?????????????????????????????????????????????????? | | ?????????????????????????????????????????????????? | | ?????????????????????????????????????????????????? | | ?????????????????????????????????????????????????? | | ?????????????????????????????????????????????????? | | ?????????????????????????????????????????????????? | +----------------------------------------------------+ Best States ------------- Heat Dissipation 25 Energy Generation 14 Energy Capacity 250 Matter Stores 343 Matter Capacity 450 Sight Range 16 Robot Scan Range 20 Terrain Scan Range 16 Terrain Scan Density 10 Evasion (%) 45 Targeting Accuracy 8 Recoil Reduction 2 Item Schematics ----------------- None Robot Schematics ------------------ None Fabricated ------------ Nothing Alien Tech Used ----------------- None Achievements -------------- None Challenges ------------ None Game ------ Seed TachyonDamperCompressor Manual? 0 Play Time 00:21:23 Cumulative 306.9 hours Start 2022.04.26 @ 19:53:04 End 2022.04.26 @ 20:16:22 Sessions 1 Manual Loads 0 Difficulty Rogue Special Mode None Game No. 99 Rogue 99 Adventurer 0 Explorer 0 Win Type - Total 6 Types 3/1/0/0/2/0/0/0/0 Lore% 60 Gallery% 74 Achievement% 66 Wizard Run 0 Options --------- ASCII 0 Keyboard 0 Movement Arrows Keybinds 0 Fullscreen 0 Font 28/SmallcapsGlow Map View 72x54 Tactical HUD 1 Map Filters NONE Filters NONE Steam 1 RUN: 3704260d-6184-4a9b-a04e-6f77642e72ec